fUSD/lending_fUSD_20240521
["ID","MTS","AMOUNT","RATE_DAILY","PERIOD"]
[327611653,1716252648508,-685.24,0.00038356,6]
[327611654,1716252648519,-500.0,0.00038356,6]
[327611655,1716252648528,-500.0,0.00038356,6]
[327611656,1716252648539,-500.0,0.00038356,6]
[327611657,1716252648549,-500.0,0.00038356,6]
[327611658,1716252648559,-500.0,0.00038356,6]
[327611659,1716252648569,-500.0,0.00038356,6]
[327611660,1716252648579,-505.68305749,0.00038356,6]
[327611661,1716252648588,-670.91,0.00038356,6]
[327611662,1716252648598,-500.0,0.00038356,6]
[327611663,1716252648607,-611.55,0.00038356,6]
[327611664,1716252648617,-1215.77,0.00038356,6]
[327611665,1716252648626,-500.0,0.00038356,6]
[327611666,1716252648637,-500.0,0.00038356,6]
[327611667,1716252648647,-500.0,0.00038356,6]
[327611668,1716252648657,-500.0,0.00038356,6]
[327611669,1716252648667,-500.0,0.00038356,6]
[327611670,1716252648677,-395.91811038,0.00038356,6]
[327611671,1716252648687,-500.0,0.00038356,6]
[327611672,1716252648696,-500.0,0.00038356,6]
[327611673,1716252648706,-500.0,0.00038356,6]
[327611674,1716252648716,-154.41478968,0.00038356,6]
[327611675,1716252648727,-500.0,0.00038356,6]
[327611676,1716252648736,-500.0,0.00038356,6]
[327611677,1716252648746,-500.0,0.00038356,6]
[327611678,1716252648756,-512.98,0.00038356,6]
[327611679,1716252648766,-1083.68,0.00038356,6]
[327611680,1716252648775,-500.0,0.00038356,6]
[327611681,1716252648786,-1199.6,0.00038356,6]
[327611682,1716252648795,-208.634806,0.00038356,7]
[327611683,1716252648806,-500.0,0.00038356,6]
[327611684,1716252648816,-689.57,0.00038356,6]
[327611685,1716252648826,-500.0,0.00038356,6]
[327611686,1716252648836,-500.0,0.00038356,6]
[327611687,1716252648846,-500.0,0.00038356,6]
[327611688,1716252648857,-500.0,0.00038356,6]
[327611689,1716252648867,-686.69,0.00038356,6]
[327611690,1716252648876,-500.85062852,0.00038356,6]
[327611691,1716252648886,-2032.0,0.00038356,6]
[327611692,1716252648897,-765.99,0.00038356,6]
[327611693,1716252648907,-500.0,0.00038356,6]
[327611694,1716252648916,-500.0,0.00038356,6]
[327611695,1716252648926,-500.0,0.00038356,6]
[327611696,1716252648935,-500.0,0.00038356,6]
[327611697,1716252648945,-1159.09,0.00038356,6]
[327611698,1716252648954,-500.0,0.00038356,6]
[327611699,1716252648964,-808.88,0.00038356,6]
[327611700,1716252648974,-500.0,0.00038356,6]
[327611701,1716252648984,-500.0,0.00038356,6]
[327611702,1716252648993,-506.86,0.00038356,6]
[327611703,1716252649003,-500.0,0.00038356,6]
[327611704,1716252649013,-444.79,0.00038356,6]
[327611705,1716252649022,-3274.03,0.00038356,6]
[327611706,1716252649031,-500.0,0.00038356,6]
[327611707,1716252649041,-500.0,0.00038356,6]
[327611708,1716252649050,-2151.85,0.00038356,6]
[327611709,1716252649060,-854.9,0.00038356,6]
[327611710,1716252649069,-1038.55,0.00038356,6]
[327611711,1716252649079,-1106.55,0.00038356,6]
[327611712,1716252649088,-500.0,0.00038356,6]
[327611713,1716252649098,-151.0,0.00038356,7]
[327611714,1716252649107,-500.0,0.00038356,6]
[327611715,1716252649117,-2614.54,0.00038356,6]
[327611716,1716252649126,-500.0,0.00038356,6]
[327611717,1716252649135,-600.26,0.00038356,6]
[327611718,1716252649146,-1530.91,0.00038356,6]
[327611719,1716252649155,-709.9,0.00038356,6]
[327611720,1716252649165,-1128.54,0.00038356,6]
[327611721,1716252649174,-500.0,0.00038356,6]
[327611722,1716252649183,-500.0,0.00038356,6]
[327611723,1716252649193,-503.09,0.00038356,6]
[327611724,1716252649203,-500.0,0.00038356,6]
[327611725,1716252649212,-2463.51,0.00038356,6]
[327611726,1716252649222,-1318.53,0.00038356,6]
[327611727,1716252649234,-2324.54,0.00038356,6]
[327611728,1716252649243,-500.0,0.00038356,6]
[327611729,1716252649253,-500.0,0.00038356,6]
[327611730,1716252649263,-500.0,0.00038356,6]
[327611731,1716252649273,-500.0,0.00038356,6]
[327611732,1716252649282,-439.61436047,0.00038356,6]
[327611733,1716252649292,-500.0,0.00038356,6]
[327611734,1716252649308,-3308.2,0.00038356,6]
[327611735,1716252649318,-941.48,0.00038356,6]
[327611736,1716252649328,-500.0,0.00038356,6]
[327611737,1716252649339,-1392.15,0.00038356,6]
[327611738,1716252649431,-1864.97,0.00038356,6]
[327611739,1716252649441,-500.0,0.00038356,6]
[327611740,1716252649451,-500.0,0.00038356,6]
[327611741,1716252649460,-500.0,0.00038356,6]
[327611742,1716252649470,-500.0,0.00038356,6]
[327611743,1716252649479,-500.0,0.00038356,6]
[327611744,1716252649488,-500.0,0.00038356,6]
[327611745,1716252649498,-500.0,0.00038356,6]
[327611746,1716252649507,-500.0,0.00038356,6]
[327611747,1716252649517,-500.0,0.00038356,6]
[327611748,1716252649527,-500.0,0.00038356,6]
[327611749,1716252649536,-1430.51,0.00038356,6]
[327611750,1716252649545,-500.0,0.00038356,6]
[327611751,1716252649555,-500.0,0.00038356,6]
[327611752,1716252649564,-1057.55,0.00038356,6]
[327611753,1716252649574,-2247.59,0.00038356,6]
[327611754,1716252649583,-1564.02,0.00038356,6]
[327611755,1716252649593,-1572.88,0.00038356,6]
[327611756,1716252649602,-2828.54,0.00038356,6]
[327611757,1716252649611,-157.162036,0.00038356,7]
[327611758,1716252649620,-500.0,0.00038356,6]
[327611759,1716252649630,-1495.96,0.00038356,6]
[327611760,1716252649639,-500.0,0.00038356,6]
[327611761,1716252649650,-1243.65,0.00038356,6]
[327611762,1716252649659,-818.8,0.00038356,6]
[327611763,1716252649668,-500.0,0.00038356,6]
[327611764,1716252649678,-1850.95,0.00038356,6]
[327611765,1716252649687,-500.0,0.00038356,6]
[327611766,1716252649696,-744.44,0.00038356,6]
[327611767,1716252649705,-1139.63,0.00038356,6]
[327611768,1716252649715,-500.0,0.00038356,6]
[327611769,1716252649724,-500.0,0.00038356,6]
[327611770,1716252649733,-4524.45,0.00038356,6]
[327611771,1716252649742,-883.28,0.00038356,6]
[327611772,1716252649751,-500.0,0.00038356,6]
[327611773,1716252649761,-6333.73,0.00038356,6]
[327611774,1716252649770,-1360.87,0.00038356,6]
[327611775,1716252649779,-500.0,0.00038356,6]
[327611776,1716252649788,-500.0,0.00038356,6]
[327611777,1716252649798,-500.0,0.00038356,6]
[327611778,1716252649807,-685.26,0.00038356,6]
[327611779,1716252649816,-7441.53,0.00038356,6]
[327611780,1716252649826,-500.0,0.00038356,6]
[327611781,1716252649835,-500.0,0.00038356,6]
[327611782,1716252649844,-1040.61,0.00038356,6]
[327611783,1716252649854,-1193.08,0.00038356,6]
[327611784,1716252649863,-2556.77,0.00038356,6]
[327611785,1716252649872,-500.0,0.00038356,6]
[327611786,1716252649881,-500.0,0.00038356,6]
[327611787,1716252649891,-500.0,0.00038356,6]
[327611788,1716252649902,-500.0,0.00038356,6]
[327611789,1716252649910,-500.0,0.00038356,6]
[327611790,1716252649919,-4754.9,0.00038356,6]
[327611791,1716252649928,-33008.64,0.00038356,6]
[327611792,1716252649937,-500.0,0.00038356,6]
[327611793,1716252649946,-500.0,0.00038356,6]
[327611794,1716252649955,-1207.95,0.00038356,6]
[327611795,1716252649964,-1090.3,0.00038356,6]
[327611796,1716252649973,-637.99,0.00038356,6]
[327611797,1716252649982,-4287.64,0.00038356,6]
[327611798,1716252649991,-785.43,0.00038356,6]
[327611799,1716252649999,-500.0,0.00038356,6]
[327611800,1716252650009,-1632.44,0.00038356,6]
[327611801,1716252650018,-863.64,0.00038356,6]
[327611802,1716252650027,-770.47,0.00038356,6]
[327611803,1716252650036,-2537.53,0.00038356,6]
[327611804,1716252650045,-500.0,0.00038356,6]
[327611805,1716252650054,-2444.33,0.00038356,6]
[327611806,1716252650063,-500.0,0.00038356,6]
[327611807,1716252650072,-500.0,0.00038356,6]
[327611808,1716252650081,-151.0,0.00038356,7]
[327611809,1716252650090,-500.0,0.00038356,6]
[327611810,1716252650099,-1818.2,0.00038356,6]
[327611811,1716252650109,-500.0,0.00038356,6]
[327611812,1716252650118,-1705.62,0.00038356,6]
[327611813,1716252650128,-3216.85,0.00038356,6]
[327611814,1716252650137,-10497.11,0.00038356,6]
[327611815,1716252650146,-1596.03,0.00038356,6]
[327611816,1716252650155,-723.68,0.00038356,6]
[327611817,1716252650165,-2477.96,0.00038356,6]
[327611818,1716252650174,-1124.92,0.00038356,6]
[327611819,1716252650183,-151.0,0.00038356,7]
[327611820,1716252650192,-500.0,0.00038356,6]
[327611821,1716252650202,-150.0,0.00038356,6]
[327611822,1716252650211,-3590.21,0.00038356,6]
[327611823,1716252650220,-500.0,0.00038356,6]
[327611824,1716252650229,-904.69,0.00038356,6]
[327611825,1716252650238,-500.0,0.00038356,6]
[327611826,1716252650247,-500.0,0.00038356,6]
[327611827,1716252650257,-500.0,0.00038356,6]
[327611828,1716252650266,-1597.68,0.00038356,6]
[327611829,1716252650275,-526.7,0.00038356,6]
[327611830,1716252650285,-4455.36,0.00038356,6]
[327611831,1716252650294,-5241.54,0.00038356,6]
[327611832,1716252650308,-1774.57,0.00038356,6]
[327611833,1716252650317,-547.52,0.00038356,6]
[327611834,1716252650326,-932.22,0.00038356,6]
[327611835,1716252650336,-741.06,0.00038356,6]
[327611836,1716252650346,-500.0,0.00038356,6]
[327611837,1716252650356,-500.0,0.00038356,6]
[327611838,1716252650365,-151.0,0.00038356,7]
[327611839,1716252650375,-500.0,0.00038356,6]
[327611840,1716252650384,-231.24522514,0.00038356,6]
[327611841,1716252650397,-1145.91,0.00038356,6]
[327611842,1716252650406,-563.87,0.00038356,6]
[327611843,1716252650415,-7517.87,0.00038356,6]
[327611844,1716252650424,-500.0,0.00038356,6]
[327611845,1716252650433,-500.0,0.00038356,6]
[327611846,1716252650443,-498.39357274,0.00038356,6]
[327611847,1716252650454,-500.0,0.00038356,6]
[327611848,1716252650464,-500.0,0.00038356,6]
[327611849,1716252650473,-837.21,0.00038356,6]
[327611850,1716252650484,-500.0,0.00038356,6]
[327611851,1716252650495,-2328.38,0.00038356,6]
[327611852,1716252650504,-1924.56,0.00038356,6]
[327611853,1716252650513,-500.0,0.00038356,6]
[327611854,1716252650522,-1569.49,0.00038356,6]
[327611855,1716252650531,-500.0,0.00038356,6]
[327611856,1716252650540,-500.0,0.00038356,6]
[327611857,1716252650549,-1758.06,0.00038356,6]
[327611858,1716252650559,-1454.4,0.00038356,6]
[327611859,1716252650568,-2823.5,0.00038356,6]
[327611860,1716252650577,-500.0,0.00038356,6]
[327611861,1716252650586,-500.0,0.00038356,6]
[327611862,1716252650595,-1172.91,0.00038356,6]
[327611863,1716252650605,-2115.45,0.00038356,6]
[327611864,1716252650614,-500.0,0.00038356,6]
[327611865,1716252650623,-500.0,0.00038356,6]
[327611866,1716252650633,-500.0,0.00038356,6]
[327611867,1716252650642,-500.0,0.00038356,6]
[327611868,1716252650654,-152.976349,0.00038356,7]
[327611869,1716252650663,-500.5,0.00038356,6]
[327611870,1716252650672,-742.24,0.00038356,6]
[327611871,1716252650682,-686.81,0.00038356,6]
[327611872,1716252650691,-19525.58,0.00038356,6]
[327611873,1716252650700,-2054.73,0.00038356,6]
[327611874,1716252650709,-151.0,0.00038356,7]
[327611875,1716252650718,-500.0,0.00038356,6]
[327611876,1716252650727,-3561.4,0.00038356,6]
[327611877,1716252650737,-18257.53,0.00038356,6]
[327611878,1716252650746,-500.0,0.00038356,6]
[327611879,1716252650756,-151.0,0.00038356,7]
[327611880,1716252650765,-991.0,0.00038356,6]
[327611881,1716252650774,-1076.3,0.00038356,6]
[327611882,1716252650783,-3257.37,0.00038356,6]
[327611883,1716252650792,-1929.7,0.00038356,6]
[327611884,1716252650801,-1392.29,0.00038356,6]
[327611885,1716252650810,-1233.23,0.00038356,6]
[327611886,1716252650819,-1293.14,0.00038356,6]
[327611887,1716252650828,-500.0,0.00038356,6]
[327611888,1716252650837,-1394.59,0.00038356,6]
[327611889,1716252650846,-500.0,0.00038356,6]
[327611890,1716252650856,-1694.01,0.00038356,6]
[327611891,1716252650865,-500.0,0.00038356,6]
[327611892,1716252650874,-1176.41,0.00038356,6]
[327611893,1716252650884,-151.0,0.00038356,7]
[327611894,1716252650893,-698.21,0.00038356,6]
[327611895,1716252650905,-500.0,0.00038356,6]
[327611896,1716252650914,-1753.99,0.00038356,6]
[327611897,1716252650923,-807.32,0.00038356,6]
[327611898,1716252650933,-12456.84,0.00038356,6]
[327611899,1716252650943,-151.0,0.00038356,7]
[327611900,1716252650952,-500.0,0.00038356,6]
[327611901,1716252650961,-1751.13,0.00038356,6]
[327611902,1716252650970,-1672.14,0.00038356,6]
[327611903,1716252650979,-500.0,0.00038356,6]
[327611904,1716252650989,-2265.79,0.00038356,6]
[327611905,1716252650998,-151.0,0.00038356,7]
[327611906,1716252651008,-500.0,0.00038356,6]
[327611907,1716252651018,-1916.5,0.00038356,6]
[327611908,1716252651028,-760.26,0.00038356,6]
[327611909,1716252651037,-500.0,0.00038356,6]
[327611910,1716252651047,-500.0,0.00038356,6]
[327611911,1716252651057,-151.0,0.00038356,7]
[327611912,1716252651066,-754.62,0.00038356,6]
[327611913,1716252651075,-500.0,0.00038356,6]
[327611914,1716252651085,-500.0,0.00038356,6]
[327611915,1716252651095,-1782.34,0.00038356,6]
[327611916,1716252651104,-500.0,0.00038356,6]
[327611917,1716252651113,-2518.22,0.00038356,6]
[327611918,1716252651122,-151.0,0.00038356,7]
[327611919,1716252651132,-500.0,0.00038356,6]
[327611920,1716252651141,-500.0,0.00038356,6]
[327611921,1716252651152,-641.02,0.00038356,6]
[327611922,1716252651162,-2838.35,0.00038356,6]
[327611923,1716252651171,-500.0,0.00038356,6]
[327611924,1716252651180,-786.73,0.00038356,6]
[327611925,1716252651189,-305.69589642,0.00038356,6]
[327611926,1716252651198,-151.0,0.00038356,7]
[327611927,1716252651208,-9150.84,0.00038356,6]
[327611928,1716252651217,-2900.1,0.00038356,6]
[327611929,1716252651227,-1581.98,0.00038356,6]
[327611930,1716252651237,-2097.36,0.00038356,6]
[327611931,1716252651246,-1433.43,0.00038356,6]
[327611932,1716252651255,-151.0,0.00038356,7]
[327611933,1716252651264,-500.0,0.00038356,6]
[327611934,1716252651273,-500.0,0.00038356,6]
[327611935,1716252651283,-1107.19,0.00038356,6]
[327611936,1716252651292,-1184.1,0.00038356,6]
[327611937,1716252651302,-790.25,0.00038356,6]
[327611938,1716252651315,-1849.84,0.00038356,6]
[327611939,1716252651326,-151.0,0.00038356,7]
[327611940,1716252651335,-1249.4,0.00038356,6]
[327611941,1716252651345,-508.24,0.00038356,6]
[327611942,1716252651354,-500.0,0.00038356,6]
[327611943,1716252651363,-1350.34,0.00038356,6]
[327611944,1716252651372,-953.69,0.00038356,6]
[327611945,1716252651381,-2238.96,0.00038356,6]
[327611946,1716252651394,-1409.84,0.00038356,6]
[327611947,1716252651405,-1307.48,0.00038356,6]
[327611948,1716252651414,-581.45,0.00038356,6]
[327611949,1716252651423,-500.0,0.00038356,6]
[327611950,1716252651432,-500.0,0.00038356,6]
[327611951,1716252651442,-3019.67,0.00038356,6]
[327611952,1716252651451,-1092.61,0.00038356,6]
[327611953,1716252651461,-4180.68,0.00038356,6]
[327611954,1716252651470,-870.92,0.00038356,6]
[327611955,1716252651479,-1439.55,0.00038356,6]
[327611956,1716252651489,-500.0,0.00038356,6]
[327611957,1716252651499,-500.0,0.00038356,6]
[327611958,1716252651510,-500.0,0.00038356,6]
[327611959,1716252651520,-500.0,0.00038356,6]
[327611960,1716252651531,-8354.4,0.00038356,6]
[327611961,1716252651541,-1249.94,0.00038356,6]
[327611962,1716252651551,-500.0,0.00038356,6]
[327611963,1716252651560,-151.0,0.00038356,7]
[327611964,1716252651570,-500.0,0.00038356,6]
[327611965,1716252651580,-500.0,0.00038356,6]
[327611966,1716252651589,-6844.64,0.00038356,6]
[327611967,1716252651599,-10848.53,0.00038356,6]
[327611968,1716252651608,-3066.28,0.00038356,6]
[327611969,1716252651618,-2971.31,0.00038356,6]
[327611970,1716252651628,-500.0,0.00038356,6]
[327611971,1716252651638,-1068.63,0.00038356,6]
[327611972,1716252651648,-1052.49,0.00038356,6]
[327611973,1716252651657,-3155.39,0.00038356,6]
[327611974,1716252651666,-3906.52,0.00038356,6]
[327611975,1716252651676,-500.0,0.00038356,6]
[327611976,1716252651685,-1879.71,0.00038356,6]
[327611977,1716252651695,-564.16,0.00038356,6]
[327611978,1716252651705,-500.0,0.00038356,6]
[327611979,1716252651716,-500.0,0.00038356,6]
[327611980,1716252651725,-1104.06,0.00038356,6]
[327611981,1716252651734,-2076.65,0.00038356,6]
[327611982,1716252651743,-2052.1,0.00038356,6]
[327611983,1716252651752,-1427.12,0.00038356,6]
[327611984,1716252651761,-1616.4,0.00038356,6]
[327611985,1716252651770,-1435.88,0.00038356,6]
[327611986,1716252651781,-500.0,0.00038356,6]
[327611987,1716252651790,-5429.06,0.00038356,6]
[327611988,1716252651799,-521.04,0.00038356,6]
[327611989,1716252651808,-1107.17,0.00038356,6]
[327611990,1716252651817,-1835.58,0.00038356,6]
[327611991,1716252651826,-7435.54,0.00038356,6]
[327611992,1716252651835,-1223.4,0.00038356,6]
[327611993,1716252651844,-500.0,0.00038356,6]
[327611994,1716252651854,-500.0,0.00038356,6]
[327611995,1716252651862,-500.0,0.00038356,6]
[327611996,1716252651872,-151.0,0.00038356,7]
[327611997,1716252651881,-556.69,0.00038356,6]
[327611998,1716252651890,-2150.72,0.00038356,6]
[327611999,1716252651900,-500.0,0.00038356,6]
[327612000,1716252651909,-500.0,0.00038356,6]
[327612001,1716252651918,-500.0,0.00038356,6]
[327612002,1716252651927,-500.0,0.00038356,6]
[327612003,1716252651936,-500.0,0.00038356,6]
[327612004,1716252651945,-151.0,0.00038356,7]
[327612005,1716252651954,-500.0,0.00038356,6]
[327612006,1716252651964,-500.0,0.00038356,6]
[327612007,1716252651973,-500.0,0.00038356,6]
[327612008,1716252651982,-500.0,0.00038356,6]
[327612009,1716252651991,-500.0,0.00038356,6]
[327612010,1716252652001,-500.0,0.00038356,6]
[327612011,1716252652010,-1029.24,0.00038356,6]
[327612012,1716252652019,-2065.57,0.00038356,6]
[327612013,1716252652028,-500.0,0.00038356,6]
[327612014,1716252652038,-3118.19,0.00038356,6]
[327612015,1716252652048,-500.0,0.00038356,6]
[327612016,1716252652058,-500.0,0.00038356,6]
[327612017,1716252652067,-500.0,0.00038356,6]
[327612018,1716252652076,-500.0,0.00038356,6]
[327612019,1716252652086,-500.0,0.00038356,6]
[327612020,1716252652095,-500.0,0.00038356,6]
[327612021,1716252652104,-1140.35,0.00038356,6]
[327612022,1716252652113,-500.0,0.00038356,6]
[327612023,1716252652123,-500.0,0.00038356,6]
[327612024,1716252652132,-500.0,0.00038356,6]
[327612025,1716252652141,-500.0,0.00038356,6]
[327612026,1716252652151,-500.0,0.00038356,6]
[327612027,1716252652160,-537.44,0.00038356,6]
[327612028,1716252652170,-500.0,0.00038356,6]
[327612029,1716252652179,-151.0,0.00038356,7]
[327612030,1716252652188,-500.0,0.00038356,6]
[327612031,1716252652198,-247.4,0.00038356,6]
[327612032,1716252652208,-637.56729569,0.00038356,6]
[327612033,1716252652218,-1466.98,0.00038356,6]
[327612034,1716252652228,-964.27,0.00038356,6]
[327612035,1716252652239,-7732.89,0.00038356,6]
[327612036,1716252652249,-2199.13,0.00038356,6]
[327612037,1716252652258,-2359.79,0.00038356,6]
[327612038,1716252652268,-520.64655986,0.00038356,6]
[327612039,1716252652278,-500.0,0.00038356,6]
[327612040,1716252652287,-928.16,0.00038356,6]
[327612041,1716252652300,-3254.02,0.00038356,6]
[327612042,1716252652313,-2293.93,0.00038356,6]
[327612043,1716252652322,-801.81,0.00038356,6]
[327612044,1716252652331,-842.17,0.00038356,6]
[327612045,1716252652341,-410.88642997,0.00038356,6]
[327612046,1716252652351,-2439.44,0.00038356,6]
[327612047,1716252652360,-2146.64,0.00038356,6]
[327612048,1716252652370,-1529.95,0.00038356,6]
[327612049,1716252652379,-458.6045774,0.00038356,6]
[327612050,1716252652392,-6868.85,0.00038356,6]
[327612051,1716252652403,-2351.85,0.00038356,6]
[327612052,1716252652413,-1240.29,0.00038356,6]
[327612053,1716252652422,-799.42,0.00038356,6]
[327612054,1716252652431,-777.22,0.00038356,6]
[327612055,1716252652441,-500.0,0.00038356,6]
[327612056,1716252652451,-500.0,0.00038356,6]
[327612057,1716252652462,-151.0,0.00038356,7]
[327612058,1716252652472,-2206.25,0.00038356,6]
[327612059,1716252652484,-1444.41,0.00038356,6]
[327612060,1716252652493,-500.0,0.00038356,6]
[327612061,1716252652504,-628.59,0.00038356,6]
[327612062,1716252652514,-3501.83,0.00038356,6]
[327612063,1716252652526,-1687.81,0.00038356,6]
[327612064,1716252652538,-1223.26,0.00038356,6]
[327612065,1716252652549,-500.0,0.00038356,6]
[327612066,1716252652558,-500.0,0.00038356,6]
[327612067,1716252652569,-733.43,0.00038356,6]
[327612068,1716252652579,-4544.0,0.00038356,6]
[327612069,1716252652589,-500.0,0.00038356,6]
[327612070,1716252652599,-500.0,0.00038356,6]
[327612071,1716252652608,-500.0,0.00038356,6]
[327612072,1716252652618,-151.0,0.00038356,7]
[327612073,1716252652627,-3118.6,0.00038356,6]
[327612074,1716252652637,-1098.51,0.00038356,6]
[327612075,1716252652647,-2995.64,0.00038356,6]
[327612076,1716252652656,-393.43647546,0.00038356,6]
[327612077,1716252652666,-500.0,0.00038356,6]
[327612078,1716252652675,-519.83,0.00038356,6]
[327612079,1716252652685,-987.19,0.00038356,6]
[327612080,1716252652695,-500.0,0.00038356,6]
[327612081,1716252652704,-500.0,0.00038356,6]
[327612082,1716252652715,-4038.9,0.00038356,6]
[327612083,1716252652724,-2236.69,0.00038356,6]
[327612084,1716252652734,-232.27789178,0.00038356,6]
[327612085,1716252652744,-2606.35,0.00038356,6]
[327612086,1716252652754,-500.0,0.00038356,6]
[327612087,1716252652765,-500.0,0.00038356,6]
[327612088,1716252652775,-500.0,0.00038356,6]
[327612089,1716252652786,-1362.0,0.00038356,6]
[327612090,1716252652795,-4358.05,0.00038356,6]
[327612091,1716252652805,-1588.52,0.00038356,6]
[327612092,1716252652815,-807.16,0.00038356,6]
[327612093,1716252652824,-500.0,0.00038356,6]
[327612094,1716252652834,-778.75,0.00038356,6]
[327612095,1716252652844,-151.0,0.00038356,7]
[327612096,1716252652853,-500.0,0.00038356,6]
[327612097,1716252652863,-536.48,0.00038356,6]
[327612098,1716252652874,-2731.56,0.00038356,6]
[327612099,1716252652883,-500.0,0.00038356,6]
[327612100,1716252652893,-6717.54,0.00038356,6]
[327612101,1716252652905,-3640.01,0.00038356,6]
[327612102,1716252652916,-10905.46,0.00038356,6]
[327612103,1716252652926,-500.0,0.00038356,6]
[327612104,1716252652936,-500.0,0.00038356,6]
[327612105,1716252652947,-605.33,0.00038356,6]
[327612106,1716252652956,-1044.34,0.00038356,6]
[327612107,1716252652967,-500.0,0.00038356,6]
[327612108,1716252652976,-551.75,0.00038356,6]
[327612109,1716252652986,-3780.64,0.00038356,6]
[327612110,1716252652995,-151.0,0.00038356,7]
[327612111,1716252653006,-351.8,0.00038356,2]
[327612112,1716252653016,-250.72,0.00038356,2]
[327612113,1716252653026,-150.0,0.00038428,2]
[327612114,1716252653036,-1068.62,0.00038529,2]
[327612115,1716252653046,-285.0393004,0.00038628,4]
[327612116,1716252653057,-155.0,0.00038628,4]
[327612117,1716252653066,-762.98484307,0.00038628,14]
[327612118,1716252653077,-158.64440687,0.00038628,4]
[327612119,1716252653087,-205.90113136,0.00038628,4]
[327612120,1716252653096,-5272.17642688,0.00038628,4]
[327612121,1716252653106,-159.03909377,0.00038628,4]
[327612122,1716252653115,-201.46459188,0.00038628,4]
[327612123,1716252653125,-155.33461273,0.00038628,4]
[327612124,1716252653136,-5000.0,0.00038628,2]
[327612125,1716252653149,-29439.2127778,0.00038628,4]
[327612126,1716252653159,-179.49292044,0.00038628,4]
[327612127,1716252653169,-175.47369555,0.00038628,4]
[327612128,1716252653178,-158.82332061,0.00038629,4]
[327612129,1716252653188,-150.0,0.00038629,2]
[327612130,1716252653198,-400.0,0.00038629,10]
[327612131,1716252653208,-669.2,0.0003863,6]
[327612132,1716252653218,-500.0,0.0003863,6]
[327612133,1716252653228,-500.0,0.0003863,6]
[327612134,1716252653238,-975.26,0.0003863,6]
[327612135,1716252653247,-1115.3,0.0003863,6]
[327612136,1716252653256,-508.18,0.0003863,6]
[327612137,1716252653266,-617.02,0.0003863,6]
[327612138,1716252653275,-500.0,0.0003863,6]
[327612139,1716252653285,-500.0,0.0003863,6]
[327612140,1716252653294,-500.0,0.0003863,6]
[327612141,1716252653304,-597.74,0.0003863,6]
[327612142,1716252653319,-500.0,0.0003863,6]
[327612143,1716252653329,-877.96,0.0003863,6]
[327612144,1716252653339,-500.0,0.0003863,6]
[327612145,1716252653348,-573.27,0.0003863,6]
[327612146,1716252653359,-500.0,0.0003863,6]
[327612147,1716252653368,-500.0,0.0003863,6]
[327612148,1716252653378,-500.0,0.0003863,6]
[327612149,1716252653391,-500.0,0.0003863,6]
[327612150,1716252653403,-500.0,0.0003863,6]
[327612151,1716252653413,-500.0,0.0003863,6]
[327612152,1716252653423,-500.0,0.0003863,6]